[Event "51st Rilton Cup 2023-24"]
[Site "Stockholm"]
[Date "2024.01.02"]
[Round "6.22"]
[White "Ajay Santhosh Parvathareddy"]
[Black "Aradhya, Garg"]
[Result "0-1"]
[ECO "D12"]
[WhiteElo "2228"]
[BlackElo "2390"]
[Annotator "RC"]
[PlyCount "50"]
[EventDate "2023.12.27"]
[EventType "swiss"]
[EventCountry "SWE"]
[SourceTitle "playchess.com"]
[Source "ChessBase"]
[SourceQuality "1"]
[TimeControl "40/5400+30:1800+30"]

1. d4 {[%emt 0:00:01]} d5 {[%emt 0:00:02]} 2. Nf3 {[%emt 0:00:07]} Nf6 {[%emt 0:00:08]} 3. e3 {[%emt 0:00:03]} Bf5 {[%emt 0:01:38]} 4. c4 {[%emt 0:00:38]} c6 {[%emt 0:00:50]} 5. Nc3 {[%emt 0:01:39]} e6 {[%emt 0:00:15]} 6. Qb3 {[%emt 0:00:45]} Qb6 {[%emt 0:00:07]} 7. c5 {[%emt 0:01:35]} Qc7 {[%emt 0:00:21]} 8. Qa4 {[%emt 0:01:35]} Be7 {[%emt 0:03:51]} 9. b4 {[%emt 0:03:04]} O-O {[%emt 0:00:33]} 10. Nh4 {[%emt 0:00:56]} Be4 {[%emt 0:04:04]} 11. f3 {[%emt 0:00:59]} Ng4 {[%emt 0:07:28]} 12. fxe4 {[%emt 0:10:16]} Bxh4+ {[%emt 0:00:21]} 13. g3 {[%emt 0:00:12]} Bxg3+ {[%emt 0:10:19]} 14. hxg3 {[%emt 0:02:23]} Qxg3+ {[%emt 0:00:07]} 15. Ke2 {[%emt 0:27:06]} Nf2 {[%emt 0:25:04]} 16. Rh5 {[%emt 0:02:13]} dxe4 {[%emt 0:09:37]} 17. Qc2 {[%emt 0:03:56]} f5 {[%emt 0:02:03]} 18. Rg5 {[%emt 0:17:34]} Ng4 {[%emt 0:01:51]} 19. Kd1 {[%emt 0:04:24]} Nf2+ {[%emt 0:10:00]} 20. Ke2 {[%emt 0:00:14]} Qxg5 {[%emt 0:00:34]} 21. Kxf2 {[%emt 0:00:07]} Nd7 {[%emt 0:00:56]} 22. Ke1 {[%emt 0:01:41]} Nf6 {[%emt 0:00:24]} 23. Qg2 {[%emt 0:04:19]} Qh6 {[%emt 0:02:35]} 24. Bd2 {[%emt 0:04:48]} Nd5 {[%emt 0:00:09]} 25. Qf2 {[%emt 0:03:02]} a6 {[%emt 0:03:26]} 0-1

[Event "51st Rilton Cup 2023-24"]
[Site "Stockholm"]
[Date "2024.01.02"]
[Round "6.23"]
[White "Dixit, Nikhil"]
[Black "Kokoszczynski, Jan"]
[Result "0-1"]
[ECO "C43"]
[WhiteElo "2365"]
[BlackElo "2250"]
[Annotator "RC"]
[PlyCount "37"]
[EventDate "2023.12.27"]
[EventType "swiss"]
[EventCountry "SWE"]
[SourceTitle "playchess.com"]
[Source "ChessBase"]
[SourceQuality "1"]
[TimeControl "40/5400+30:1800+30"]

1. e4 {[%emt 0:03:04]} e5 {[%emt 0:00:17]} 2. Nf3 {[%emt 0:00:00]} Nf6 {[%emt 0:00:07]} 3. d4 {[%emt 0:00:51]} Nxe4 {[%emt 0:00:09]} 4. Bd3 {[%emt 0:01:02]} d5 {[%emt 0:00:13]} 5. Nxe5 {[%emt 0:01:38]} Nd7 {[%emt 0:01:31]} 6. O-O {[%emt 0:02:52]} Bd6 {[%emt 0:03:40]} 7. Nxd7 {[%emt 0:09:56]} Bxd7 {[%emt 0:00:36]} 8. Qf3 {[%emt 0:02:16]} O-O {[%emt 0:13:39]} 9. c4 {[%emt 0:08:08]} Qh4 {[%emt 0:14:08]} 10. g3 {[%emt 0:19:19]} Bg4 {[%emt 0:08:30]} 11. Qe3 {[%emt 0:22:56]} Qh3 {[%emt 0:01:39]} 12. Re1 {[%emt 0:04:36]} Rae8 {[%emt 0:05:05]} 13. Bf1 {[%emt 0:01:20]} Qh5 {[%emt 0:00:28]} 14. Bg2 {[%emt 0:02:50]} Bb4 {[%emt 0:20:44]} 15. Rf1 {[%emt 0:02:58]} Be2 {[%emt 0:02:34]} 16. Qb3 {[%emt 0:04:03]} Bxf1 {[%emt 0:07:39]} 17. Bxf1 {[%emt 0:00:12]} Be1 {[%emt 0:05:43]} 18. Be3 {[%emt 0:00:48]} Qf5 {[%emt 0:01:19]} 19. Qc2 {[%emt 0:00:40]} 0-1

[Event "51st Rilton Cup 2023-24"]
[Site "Stockholm"]
[Date "2024.01.02"]
[Round "6.24"]
[White "Ivanov, Mike"]
[Black "Arpita, Mukherjee"]
[Result "1-0"]
[ECO "D02"]
[WhiteElo "2356"]
[BlackElo "2186"]
[Annotator "RC"]
[PlyCount "47"]
[EventDate "2023.12.27"]
[EventType "swiss"]
[EventCountry "SWE"]
[SourceTitle "playchess.com"]
[Source "ChessBase"]
[SourceQuality "1"]
[TimeControl "40/5400+30:1800+30"]

1. Nf3 {[%emt 0:03:17]} Nf6 {[%emt 0:00:15]} 2. g3 {[%emt 0:00:11]} c5 {[%emt 0:01:15]} 3. Bg2 {[%emt 0:00:30]} d5 {[%emt 0:00:22]} 4. O-O {[%emt 0:00:53]} Nc6 {[%emt 0:00:12]} 5. d4 {[%emt 0:03:13]} cxd4 {[%emt 0:05:48]} 6. Nxd4 {[%emt 0:00:10]} e5 {[%emt 0:00:08]} 7. Nxc6 {[%emt 0:00:15]} bxc6 {[%emt 0:00:09]} 8. c4 {[%emt 0:00:50]} h6 {[%emt 0:02:11]} 9. Nc3 {[%emt 0:04:30]} e4 {[%emt 0:07:09]} 10. cxd5 {[%emt 0:15:01]} cxd5 {[%emt 0:00:12]} 11. Bf4 {[%emt 0:13:46]} Qd7 {[%emt 0:20:07]} 12. Be5 {[%emt 0:05:04]} Bb7 {[%emt 0:06:25]} 13. Bxf6 {[%emt 0:02:00]} gxf6 {[%emt 0:00:08]} 14. Qd4 {[%emt 0:00:07]} Bg7 {[%emt 0:01:27]} 15. Rfd1 {[%emt 0:09:35]} Rd8 {[%emt 0:01:52]} 16. Qxa7 {[%emt 0:04:17]} f5 {[%emt 0:00:52]} 17. Qc5 {[%emt 0:00:12]} Qc6 {[%emt 0:13:20]} 18. Qb4 {[%emt 0:04:40]} Bf8 {[%emt 0:16:33]} 19. Qd4 {[%emt 0:00:34]} f6 {[%emt 0:00:08]} 20. b4 {[%emt 0:02:46]} Be7 {[%emt 0:02:52]} 21. Rac1 {[%emt 0:05:37]} Qd7 {[%emt 0:03:59]} 22. e3 {[%emt 0:09:27]} O-O {[%emt 0:00:33]} 23. Bh3 {[%emt 0:00:23]} Qe6 {[%emt 0:01:21]} 24. Ne2 {[%emt 0:04:39]} 1-0

[Event "51st Rilton Cup 2023-24"]
[Site "Stockholm"]
[Date "2024.01.02"]
[Round "6.25"]
[White "Brilej, Jaka"]
[Black "Lim, Zhuo Ren"]
[Result "1/2-1/2"]
[ECO "B33"]
[WhiteElo "2348"]
[BlackElo "2218"]
[Annotator "RC"]
[PlyCount "78"]
[EventDate "2023.12.27"]
[EventType "swiss"]
[EventCountry "SWE"]
[SourceTitle "playchess.com"]
[Source "ChessBase"]
[SourceQuality "1"]
[TimeControl "40/5400+30:1800+30"]

1. e4 {[%emt 0:03:12]} c5 {[%emt 0:00:20]} 2. Nf3 {[%emt 0:00:18]} Nc6 {[%emt 0:00:43]} 3. d4 {[%emt 0:01:40]} cxd4 {[%emt 0:00:11]} 4. Nxd4 {[%emt 0:00:08]} Nf6 {[%emt 0:00:08]} 5. Nc3 {[%emt 0:00:07]} e5 {[%emt 0:00:10]} 6. Ndb5 {[%emt 0:00:06]} d6 {[%emt 0:00:08]} 7. Bg5 {[%emt 0:01:14]} a6 {[%emt 0:00:22]} 8. Na3 {[%emt 0:00:06]} b5 {[%emt 0:00:10]} 9. Nd5 {[%emt 0:00:18]} Be7 {[%emt 0:00:11]} 10. Bxf6 {[%emt 0:00:23]} Bxf6 {[%emt 0:00:11]} 11. c3 {[%emt 0:00:07]} Rb8 {[%emt 0:00:09]} 12. Nc2 {[%emt 0:00:08]} Bg5 {[%emt 0:00:12]} 13. a4 {[%emt 0:00:28]} bxa4 {[%emt 0:01:04]} 14. Ncb4 {[%emt 0:00:17]} Nxb4 {[%emt 0:00:57]} 15. cxb4 {[%emt 0:01:21]} O-O {[%emt 0:00:49]} 16. Rxa4 {[%emt 0:02:27]} a5 {[%emt 0:00:11]} 17. b5 {[%emt 0:00:10]} Bd7 {[%emt 0:00:13]} 18. h4 {[%emt 0:03:11]} Bh6 {[%emt 0:05:58]} 19. Nc3 {[%emt 0:00:19]} d5 {[%emt 0:01:00]} 20. exd5 {[%emt 0:00:48]} f5 {[%emt 0:02:10]} 21. Be2 {[%emt 0:04:54]} e4 {[%emt 0:01:07]} 22. d6 {[%emt 0:10:29]} Kh8 {[%emt 0:00:55]} 23. Qd4 {[%emt 0:07:02]} Rf6 {[%emt 0:09:12]} 24. g3 {[%emt 0:19:37]} Qf8 {[%emt 0:04:59]} 25. O-O {[%emt 0:00:00]} Rxd6 {[%emt 0:00:30]} 26. Qa7 {[%emt 0:00:10]} Ra8 {[%emt 0:02:14]} 27. Qc7 {[%emt 0:00:58]} g5 {[%emt 0:18:30]} 28. Rd1 {[%emt 0:05:07]} Rxd1+ {[%emt 0:00:53]} 29. Nxd1 {[%emt 0:00:53]} Qe8 {[%emt 0:01:47]} 30. Rd4 {[%emt 0:06:52]} Be6 {[%emt 0:01:39]} 31. hxg5 {[%emt 0:00:28]} Bg7 {[%emt 0:01:11]} 32. Rd2 {[%emt 0:01:34]} h6 {[%emt 0:02:19]} 33. gxh6 {[%emt 0:06:26]} Bxh6 {[%emt 0:00:06]} 34. Rd6 {[%emt 0:02:06]} Bg7 {[%emt 0:04:32]} 35. Ra6 {[%emt 0:06:03]} a4 {[%emt 0:08:34]} 36. Bh5 {[%emt 0:05:03]} Qg8 {[%emt 0:00:23]} 37. Bf7 {[%emt 0:08:07]} Bxf7 {[%emt 0:00:37]} 38. Rxa8 {[%emt 0:00:06]} Qxa8 {[%emt 0:00:03]} 39. Qxf7 {[%emt 0:00:05]} Qd8 {[%emt 0:02:19]} 1/2-1/2

[Event "51st Rilton Cup 2023-24"]
[Site "Stockholm"]
[Date "2024.01.02"]
[Round "6.26"]
[White "Nyysti, Sampsa"]
[Black "Starosta, Martyna"]
[Result "1/2-1/2"]
[ECO "A17"]
[WhiteElo "2339"]
[BlackElo "2067"]
[Annotator "RC"]
[PlyCount "62"]
[EventDate "2023.12.27"]
[EventType "swiss"]
[EventCountry "SWE"]
[SourceTitle "playchess.com"]
[Source "ChessBase"]
[SourceQuality "1"]
[TimeControl "40/5400+30:1800+30"]

1. Nf3 {[%emt 0:00:04]} Nf6 {[%emt 0:00:37]} 2. c4 {[%emt 0:00:03]} e6 {[%emt 0:00:31]} 3. Nc3 {[%emt 0:00:07]} Bb4 {[%emt 0:00:28]} 4. Qc2 {[%emt 0:00:15]} d5 {[%emt 0:03:53]} 5. a3 {[%emt 0:05:04]} Bd6 {[%emt 0:04:21]} 6. cxd5 {[%emt 0:05:53]} exd5 {[%emt 0:00:14]} 7. Nb5 {[%emt 0:00:37]} O-O {[%emt 0:00:36]} 8. e3 {[%emt 0:09:18]} b6 {[%emt 0:03:18]} 9. Be2 {[%emt 0:04:37]} Ba6 {[%emt 0:03:04]} 10. Nxd6 {[%emt 0:09:25]} Qxd6 {[%emt 0:02:51]} 11. d3 {[%emt 0:00:11]} c5 {[%emt 0:00:58]} 12. O-O {[%emt 0:02:23]} Nc6 {[%emt 0:01:54]} 13. b4 {[%emt 0:11:26]} Rac8 {[%emt 0:08:21]} 14. Qa4 {[%emt 0:03:11]} Bb7 {[%emt 0:04:00]} 15. bxc5 {[%emt 0:00:08]} bxc5 {[%emt 0:01:47]} 16. Rb1 {[%emt 0:02:01]} Ba8 {[%emt 0:01:52]} 17. Bb2 {[%emt 0:01:40]} Rfe8 {[%emt 0:05:42]} 18. Rfe1 {[%emt 0:06:50]} Rcd8 {[%emt 0:06:09]} 19. Bxf6 {[%emt 0:01:33]} Qxf6 {[%emt 0:03:25]} 20. Rbc1 {[%emt 0:00:39]} c4 {[%emt 0:07:53]} 21. dxc4 {[%emt 0:00:26]} d4 {[%emt 0:06:28]} 22. exd4 {[%emt 0:02:15]} Nxd4 {[%emt 0:02:10]} 23. Nxd4 {[%emt 0:01:28]} Qxd4 {[%emt 0:01:11]} 24. Bf3 {[%emt 0:10:51]} Rf8 {[%emt 0:04:28]} 25. Rcd1 {[%emt 0:01:17]} Qc3 {[%emt 0:01:18]} 26. Qb4 {[%emt 0:01:53]} Qxb4 {[%emt 0:01:45]} 27. axb4 {[%emt 0:00:05]} Bxf3 {[%emt 0:00:17]} 28. gxf3 {[%emt 0:03:03]} Rb8 {[%emt 0:00:55]} 29. b5 {[%emt 0:02:44]} Rfc8 {[%emt 0:01:29]} 30. Re4 {[%emt 0:01:50]} Rc7 {[%emt 0:00:41]} 31. Ra1 {[%emt 0:03:17]} Rd8 {[%emt 0:02:09]} 1/2-1/2

[Event "51st Rilton Cup 2023-24"]
[Site "Stockholm"]
[Date "2024.01.03"]
[Round "7.1"]
[White "Blomqvist, Erik"]
[Black "Trost, Edvin"]
[Result "1/2-1/2"]
[ECO "B31"]
[WhiteElo "2521"]
[BlackElo "2434"]
[Annotator "TA"]
[PlyCount "88"]
[EventDate "2023.12.27"]
[EventType "swiss"]
[EventCountry "SWE"]
[SourceTitle "playchess.com"]
[Source "ChessBase"]
[SourceQuality "1"]
[TimeControl "40/5400+30:1800+30"]

{[%evp 10,88,29,22,24,29,34,23,13,7,8,7,6,16,16,0,0,0,0,0,0,-14,-10,-2,0,-7,-9,-12,-24,-22,0,0,0,0,0,0,11,0,0,0,4,5,11,0,19,0,2,0,0,0,6,13,10,10,6,14,14,9,15,0,0,0,10,0,12,4,0,0,0,8,3,6,10,0,0,0,0,0,0,0,22]} 1. e4 {[%emt 0:00:59]} c5 {[%emt 0:02:38]} 2. Nf3 {[%emt 0:00:09]} Nc6 {[%emt 0:00:54]} 3. Bb5 {[%emt 0:00:13]} g6 {[%emt 0:00:07]} 4. Bxc6 {[%emt 0:03:52]} bxc6 {[%emt 0:00:10]} 5. O-O {[%emt 0:01:23]} Bg7 {[%emt 0:00:20]} 6. Re1 {[%emt 0:00:25]} Qc7 $1 {[%emt 0:00:11][%mdl 4] is recently more successful than 6...Nh6. B31: Sicilian: 2...Nc6 3 Bb5 g6.} 7. c3 {[%emt 0:03:57]} d6 {[%emt 0:00:50]} 8. h3 {[%emt 0:01:36]} Nf6 {[%emt 0:00:04] White has an edge.} 9. d4 {[%emt 0:01:37]} cxd4 {[%emt 0:00:11]} 10. cxd4 {[%emt 0:00:06]} O-O {[%emt 0:00:06]} 11. Nc3 {[%emt 0:01:38]} c5 {[%emt 0:00:06]} 12. Bg5 {[%emt 0:15:42]} cxd4 {[%emt 0:02:13]} 13. Nxd4 {[%emt 0:01:56]} Bb7 {[%emt 0:00:17]} 14. Qd2 {[%emt 0:01:42] [#]} Rac8 $146 {[%emt 0:05:08]} ({Predecessor:} 14... Rfe8 15. Rac1 Qb6 16. Be3 Qd8 17. Bh6 Bh8 18. Rcd1 Rc8 19. Nb3 Nd7 20. Nd5 Nb6 21. Nxb6 Qxb6 {½-½ Fedorchuk,S (2594)-Fier,A (2563) NED-chT 2122 2021 (1.4)}) 15. Bh6 {[%emt 0:07:53]} Bxh6 {[%emt 0:01:06]} 16. Qxh6 {[%emt 0:00:25]} Qb6 {[%emt 0:00:06][%csl LRb2,LRd4]} 17. Qd2 {[%emt 0:02:46]} (17. Nb3 {keeps more tension.} Rc4 18. Nd2 Rc7 19. Nb3) 17... Rc4 {[%emt 0:03:49]} 18. Rad1 {[%emt 0:03:53]} Rfc8 {[%emt 0:04:57]} 19. Re3 {[%emt 0:19:42]} R8c5 {[%emt 0:08:52] The position is equal.} (19... Kg7 {seems wilder.} 20. Ree1 h6 21. e5 Ne4) 20. Qe1 {[%emt 0:11:55]} Rc7 {[%emt 0:04:19]} 21. Red3 {[%emt 0:05:31]} Qc5 {[%emt 0:10:51]} ({Resist} 21... Qxb2 22. Rb1 Qa3 23. Ndb5 $16) 22. Qe3 {[%emt 0:07:12]} a6 {[%emt 0:02:35]} 23. Qe2 {[%emt 0:01:17]} Kg7 {[%emt 0:10:00]} 24. Qe3 {[%emt 0:00:45]} Qh5 {[%emt 0:01:28]} 25. f3 {[%emt 0:00:54]} Rc8 {[%emt 0:02:25]} 26. Nde2 {[%emt 0:00:39]} Nd7 {[%emt 0:00:28]} 27. Nd5 {[%emt 0:00:57]} (27. b3 $5 {[%cal Rb3c4]} R4c5 28. Nd5 Bxd5 29. Rxd5 Rxd5 30. Rxd5 $11) 27... Qe5 {[%emt 0:00:45]} 28. Nec3 {[%emt 0:01:24]} Bxd5 {[%emt 0:03:50]} 29. Rxd5 {[%emt 0:00:15]} Qe6 {[%emt 0:02:02]} 30. Ra5 {[%emt 0:00:37]} R8c6 {[%emt 0:00:25]} 31. Ne2 {[%emt 0:01:18][%cal Bc3e2,Be2d4,Bd4c2,Bc2e3][%mdl 32] [#] Strongly threatening b3.} Qf6 $1 {[%emt 0:01:14]} 32. Nd4 {[%emt 0:01:47]} Rb6 {[%emt 0:00:05]} 33. b3 {[%emt 0:00:13]} Rc8 {[%emt 0:00:21]} 34. Qe2 {[%emt 0:01:52]} Nc5 {[%emt 0:04:54]} 35. Qd2 {[%emt 0:00:10]} h5 {[%emt 0:02:54]} 36. Nc2 {[%emt 0:00:48]} Nb7 {[%emt 0:14:17]} 37. Ra4 {[%emt 0:00:11]} Qc3 {[%emt 0:01:14]} 38. Ne3 {[%emt 0:00:39] [#] Qxc3+ is the strong threat.} Qxd2 {[%emt 0:01:17]} 39. Rxd2 {[%emt 0:00:01]} Rc1+ {[%emt 0:00:07]} 40. Kf2 {[%emt 0:00:10] next Nd5 is good for White.} Nc5 {[%emt 0:00:15]} 41. Ra3 {[%emt 0:07:43]} Rc6 {[%emt 0:03:15]} 42. h4 {[%emt 0:11:45]} Kf8 {[%emt 0:05:32]} 43. Ke2 {[%emt 0:01:35]} Ne6 {[%emt 0:01:16]} 44. Nd5 {[%emt 0:00:46]} R1c5 {[%emt 0:00:30] An interesting draw.   Weighted Error Value: White=0.04 (flawless) /Black=0.02 (flawless)} 1/2-1/2

[Event "51st Rilton Cup 2023-24"]
[Site "Stockholm"]
[Date "2024.01.03"]
[Round "7.2"]
[White "Sivuk, Vitaly"]
[Black "Raja Rithvik R"]
[Result "1-0"]
[ECO "D35"]
[WhiteElo "2490"]
[BlackElo "2500"]
[Annotator "TA"]
[PlyCount "123"]
[EventDate "2023.12.27"]
[EventType "swiss"]
[EventCountry "SWE"]
[SourceTitle "playchess.com"]
[Source "ChessBase"]
[SourceQuality "1"]
[TimeControl "40/5400+30:1800+30"]

{[%evp 12,123,0,0,4,-9,22,29,23,0,33,12,25,21,37,37,37,36,33,35,35,48,46,45,48,21,79,52,110,73,72,51,55,52,46,13,16,16,24,0,0,0,0,-23,-15,-25,-17,-22,-4,-20,0,0,26,-12,0,-19,-20,-27,-28,-28,-28,-28,-27,-25,-15,-26,-7,-29,-34,-28,0,-62,-61,-74,-73,-69,-50,-74,-75,-47,-42,-78,-88,-91,-92,-76,-11,-45,-11,-13,0,-177,-135,-147,-129,-210,0,0,0,0,0,0,0,0,0,0,297,299,29990,29991,29991,29992,29994,29995]} 1. d4 {[%emt 0:00:04]} d5 {[%emt 0:05:41]} 2. c4 {[%emt 0:00:17]} e6 {[%emt 0:00:07]} 3. Nf3 {[%emt 0:00:54]} Nf6 {[%emt 0:00:10]} 4. Nc3 {[%emt 0:01:34]} c6 {[%emt 0:00:16]} 5. cxd5 {[%emt 0:01:03]} exd5 {[%emt 0:00:09]} 6. Bf4 {[%emt 0:00:07]} Bf5 {[%emt 0:09:05]} 7. e3 {[%emt 0:01:51]} Nbd7 {[%emt 0:04:26] D35: Queen's Gambit Declined: Exchange Variation.} 8. Nh4 {[%emt 0:02:24] Recently 8.h3 got a lot of attention.} Be4 {[%emt 0:05:22]} 9. f3 {[%emt 0:06:39]} Bg6 {[%emt 0:00:59] [#] White has an edge.} 10. g4 $146 {[%emt 0:03:09] Wards off Nh5} ({Predecessor:} 10. Nxg6 fxg6 11. h3 Bb4 12. Qb3 Bxc3+ 13. bxc3 Qb6 14. Bd3 O-O 15. Qa3 c5 16. Rb1 Qc6 17. Bb5 Qc8 18. O-O a6 19. Bxd7 Nxd7 20. dxc5 Qc7 21. c6 Qxc6 22. Qd6 {1-0 Merkouropoulos,D (1255)-Deliezos,A (1136) GRE-ch South U10 2020 (2)}) 10... Be7 {[%emt 0:03:31][%cal Of6e4]} 11. Nxg6 {[%emt 0:07:42]} hxg6 {[%emt 0:00:23]} 12. Qb3 {[%emt 0:00:15]} Qb6 {[%emt 0:03:16]} 13. Qc2 {[%emt 0:03:09]} Nf8 {[%emt 0:03:55]} 14. O-O-O {[%emt 0:01:48]} Ne6 {[%emt 0:00:16]} 15. Bg3 {[%emt 0:00:14]} O-O-O {[%emt 0:03:49]} 16. h4 {[%emt 0:08:29]} (16. Na4 {seems wilder.} Qa5 17. h4 Bd6 18. Be1) 16... Bd6 {[%emt 0:04:15]} 17. Bf2 {[%emt 0:04:55]} Qc7 {[%emt 0:04:49]} 18. Bh3 {[%emt 0:07:50]} Rhe8 {[%emt 0:27:50]} (18... Kb8 $11 {keeps the balance.}) 19. g5 {[%emt 0:03:45]} (19. e4 $5 {[%cal Re4e5]}) 19... Ng8 {[%emt 0:01:06]} (19... Nd7 $14) 20. Kb1 {[%emt 0:00:41] White is more active.} Kb8 {[%emt 0:00:25]} 21. Rc1 {[%emt 0:05:11]} Ne7 {[%emt 0:01:48]} 22. Ne2 {[%emt 0:03:51]} Nc8 {[%emt 0:05:16]} 23. Qd3 {[%emt 0:04:48]} Nb6 {[%emt 0:01:03]} 24. Rc2 {[%emt 0:02:59]} Qe7 {[%emt 0:01:12]} (24... Nc4 {is interesting.} 25. e4 Qb6 26. Qb3 Nf4) 25. b3 {[%emt 0:02:08]} Nc7 {[%emt 0:01:16]} 26. a4 {[%emt 0:00:47]} Na6 {[%emt 0:00:11] ...Nb4 is the strong threat.} 27. Qd1 {[%emt 0:04:21]} f5 {[%emt 0:04:19]} 28. Re1 {[%emt 0:03:51]} Rc8 {[%emt 0:04:27]} 29. Nc3 {[%emt 0:08:00]} Bb4 {[%emt 0:03:04]} 30. Ree2 {[%emt 0:02:43]} Ka8 {[%emt 0:02:15]} 31. Na2 {[%emt 0:01:23]} Bd6 {[%emt 0:00:32]} 32. Re1 {[%emt 0:06:04]} (32. a5 $5 {[%cal Ra5b6]} Nd7 33. e4 $11) 32... Rcd8 {[%emt 0:00:23]} 33. Bf1 {[%emt 0:01:01]} Nb4 {[%emt 0:00:31]} 34. Nxb4 {[%emt 0:00:57]} (34. Rc1 {is more complex.} Nxa2 35. Kxa2 Ba3 36. Rb1) 34... Bxb4 {[%emt 0:00:02]} 35. Ree2 {[%emt 0:00:07]} Qd6 {[%emt 0:00:48]} 36. Qd3 {[%emt 0:01:15]} Nd7 {[%emt 0:00:33]} 37. Rc1 {[%emt 0:01:09]} Re7 {[%emt 0:00:37]} 38. Ra2 {[%emt 0:00:51]} Qc7 {[%emt 0:00:49]} 39. f4 {[%emt 0:01:04]} Qa5 {[%emt 0:00:31]} 40. Be2 {[%emt 0:00:29]} Rh8 {[%emt 0:00:29]} 41. Bf3 {[%emt 0:05:01]} (41. h5 $11) 41... Nb6 $15 {[%emt 0:06:09]} 42. h5 {[%emt 0:02:17][%mdl 64] [#] Deflection} gxh5 {[%emt 0:01:53]} 43. Qxf5 {[%emt 0:00:06]} Nc8 $1 {[%emt 0:02:48]} 44. Rh1 {[%emt 0:01:59]} Nd6 {[%emt 0:00:16]} 45. Qg6 {[%emt 0:00:09]} a6 {[%emt 0:02:41][%cal Oh5h4]} 46. Rc2 {[%emt 0:08:01] [#]} (46. Bxh5 $2 Ne4 47. Rc1 Bd2 $19) (46. Rxh5 $2 Rxh5 47. Qxh5 Be1 $19) 46... h4 $1 {[%emt 0:03:52][%cal Bh5h4,Bh4h3][%mdl 32]} 47. Qd3 {[%emt 0:04:29]} h3 {[%emt 0:01:52]} 48. Bg1 {[%emt 0:05:39]} Ne4 {[%emt 0:05:44]} ({Black should try} 48... Ka7 $17) 49. Bxe4 $11 {[%emt 0:00:29]} dxe4 {[%emt 0:00:27]} 50. Qf1 {[%emt 0:01:33]} Qf5 {[%emt 0:01:39] White must now prevent ...c5.} 51. Rch2 $2 {[%emt 0:01:03]} (51. Bf2 $1 $11) 51... c5 {[%emt 0:00:50]} 52. Rxh3 {[%emt 0:01:45]} Rxh3 {[%emt 0:00:30]} 53. Rxh3 {[%emt 0:00:11]} (53. Qxh3 $17 Qd5 54. Qc8+ Ka7 55. Kb2 cxd4 56. Qc4 (56. Rh8 $2 d3 $19) 56... Qxc4 57. bxc4) 53... cxd4 $2 {[%emt 0:00:19]} (53... Re8 $19 {Hoping for ...cxd4.} 54. Kb2 cxd4 55. exd4 Bd2) 54. Rh8+ {[%emt 0:00:11]} (54. exd4 $2 e3+ 55. Kb2 e2 56. Rh8+ Ka7 57. d5+ b6 $19) 54... Ka7 {[%emt 0:00:02]} 55. Qc4 {[%emt 0:00:17]} (55. exd4 e3+ 56. Kb2 e2 57. d5+ b6 58. Bxb6+ Kxb6 59. Qf2+ Kb7 60. a5 Bxa5 61. Qc5 Rc7) 55... Bc3 {[%emt 0:07:10]} 56. Ka2 {[%emt 0:01:11]} (56. exd4 e3+ 57. Kc1 Ba5 $15) 56... Ba5 {[%emt 0:01:39]} 57. exd4 {[%emt 0:03:33] And now Be3 would win.} e3 {[%emt 0:00:20]} 58. d5 $36 {[%emt 0:00:09][%mdl 2048] Threatens to win with d6. Black is under pressure.} Re4 $2 {[%emt 0:00:49][%mdl 8192]} (58... Qg4 $1 $11 {and Black is okay.} 59. Qc5+ Bb6 60. Qxe7 Qg2+ 61. Ka3 Qxg1) 59. Rf8 $1 $18 {[%emt 0:00:59][%mdl 64] Deflection} Qh7 $2 {[%emt 0:00:28] Wards off Bxe3+} (59... Qg6 $18 60. f5 Qxg5 61. Qxe4 Qxg1) 60. Qc5+ {[%emt 0:00:37] White mates.} ({Inferior is} 60. Qc8 Qh1 61. Qa8+ Kb6 62. Qd8+ Ka7 63. Qa8+ (63. Qxa5 Qg2+ 64. Ka3 Qc2 $11) (63. Qb8+ Kb6 $11) 63... Kb6 64. Qd8+ Ka7 65. Qb8+ (65. Qxa5 Qg2+ 66. Ka3 Qc2 $14) 65... Kb6 66. Qd6+ Ka7 67. Qb8+ Kb6 68. Qd6+ Ka7 69. Qb8+ $11) 60... Bb6 {[%emt 0:00:01]} 61. Qc8 {[%emt 0:00:07][%csl Gf8][%cal Rc8a8]} Bd4 {[%emt 0:01:02]} 62. a5 {[%emt 0:00:13] What a bad dream for Black.   Weighted Error Value: White=0.14 (very precise) /Black=0.31} 1-0